[Event "Early-Titled-Tuesday-Blitz-August-29-2023"]
[Site "Chess.com"]
[Date "2023.08.29"]
[Round "5"]
[White "Rosh1610"]
[Black "BlitzWizard04"]
[Result "1-0"]
[WhiteElo "2449"]
[BlackElo "2591"]
[TimeControl "180+1"]
[EndTime "8:55:16 PDT"]
[Termination "Rosh1610 won on time"]

1. e4 {[%clk 0:02:51.9]} 1... c5 {[%clk 0:02:59.8]} 2. Nf3 {[%clk 0:02:49.4]}
2... e6 {[%clk 0:03:00.3]} 3. d4 {[%clk 0:02:43.3]} 3... cxd4 {[%clk 0:03:01.2]}
4. Nxd4 {[%clk 0:02:41.8]} 4... Nc6 {[%clk 0:03:01.9]} 5. Nc3 {[%clk 0:02:39.5]}
5... Qc7 {[%clk 0:03:02.5]} 6. Be3 {[%clk 0:02:15.4]} 6... a6 {[%clk 0:03:02.6]}
7. Be2 {[%clk 0:02:05.8]} 7... Nf6 {[%clk 0:03:01.6]} 8. O-O {[%clk 0:02:04.9]}
8... b5 {[%clk 0:03:01.9]} 9. Nxc6 {[%clk 0:02:04.2]} 9... dxc6 {[%clk
0:02:58.6]} 10. f4 {[%clk 0:02:04.5]} 10... Bb7 {[%clk 0:02:56.1]} 11. e5 {[%clk
0:02:04.6]} 11... Rd8 {[%clk 0:02:55.8]} 12. Qe1 {[%clk 0:02:03.2]} 12... Nd5
{[%clk 0:02:56.4]} 13. Nxd5 {[%clk 0:02:02.9]} 13... cxd5 {[%clk 0:02:57.2]} 14.
c3 {[%clk 0:02:03.1]} 14... Bc5 {[%clk 0:02:57.4]} 15. Bd4 {[%clk 0:02:03.3]}
15... Qb6 {[%clk 0:02:55.5]} 16. Qf2 {[%clk 0:02:03]} 16... Bxd4 {[%clk
0:02:54.8]} 17. cxd4 {[%clk 0:02:03.9]} 17... Rc8 {[%clk 0:02:41.7]} 18. b4
{[%clk 0:02:02.8]} 18... O-O {[%clk 0:02:34.1]} 19. Rac1 {[%clk 0:02:01.7]}
19... a5 {[%clk 0:02:29.2]} 20. a3 {[%clk 0:02:01.3]} 20... axb4 {[%clk
0:02:29.2]} 21. axb4 {[%clk 0:02:02.2]} 21... Rxc1 {[%clk 0:02:26.5]} 22. Rxc1
{[%clk 0:02:01.4]} 22... Rc8 {[%clk 0:02:27.1]} 23. Rc5 {[%clk 0:01:58.9]} 23...
Ra8 {[%clk 0:02:19.7]} 24. h4 {[%clk 0:01:54.1]} 24... Ra1+ {[%clk 0:02:16.1]}
25. Kh2 {[%clk 0:01:54.1]} 25... Bc6 {[%clk 0:02:15.9]} 26. h5 {[%clk
0:01:52.9]} 26... h6 {[%clk 0:02:11]} 27. Bd3 {[%clk 0:01:49.1]} 27... Bd7
{[%clk 0:01:55.3]} 28. Qc2 {[%clk 0:01:48.6]} 28... Kf8 {[%clk 0:01:33.3]} 29.
Rc7 {[%clk 0:01:36.7]} 29... Qxd4 {[%clk 0:01:12.3]} 30. Rxd7 {[%clk 0:01:36.1]}
30... Qg1+ {[%clk 0:00:36.9]} 31. Kg3 {[%clk 0:01:32.1]} 31... Qe1+ {[%clk
0:00:29.2]} 32. Kg4 {[%clk 0:01:30.9]} 32... Qd1+ {[%clk 0:00:29.3]} 33. Qxd1
{[%clk 0:01:29.6]} 33... Rxd1 {[%clk 0:00:30.2]} 34. Bxb5 {[%clk 0:01:29.1]}
34... f5+ {[%clk 0:00:28.6]} 35. exf6 {[%clk 0:01:28.2]} 35... gxf6 {[%clk
0:00:29.5]} 36. Rh7 {[%clk 0:01:21.8]} 36... Rb1 {[%clk 0:00:24.8]} 37. Rxh6
{[%clk 0:01:20.9]} 37... Rxb4 {[%clk 0:00:25.4]} 38. Bd3 {[%clk 0:01:14.2]}
38... Kg7 {[%clk 0:00:22.1]} 39. Rh7+ {[%clk 0:01:13.3]} 39... Kg8 {[%clk
0:00:22.9]} 40. Ra7 {[%clk 0:01:12.4]} 40... e5 {[%clk 0:00:21]} 41. g3 {[%clk
0:01:11.8]} 41... e4 {[%clk 0:00:20.9]} 42. Ba6 {[%clk 0:00:55.5]} 42... e3
{[%clk 0:00:09.5]} 43. Kf5 {[%clk 0:00:55.1]} 43... Rb6 {[%clk 0:00:04.1]} 44.
Be2 {[%clk 0:00:39.9]} 44... d4 {[%clk 0:00:02.7]} 45. h6 {[%clk 0:00:39.6]} 1-0

[Event "Early-Titled-Tuesday-Blitz-August-29-2023"]
[Site "Chess.com"]
[Date "2023.08.29"]
[Round "5"]
[White "assezde36"]
[Black "sergoy"]
[Result "0-1"]
[WhiteElo "2821"]
[BlackElo "2952"]
[TimeControl "180+1"]
[EndTime "8:55:18 PDT"]
[Termination "sergoy won by resignation"]

1. d4 {[%clk 0:03:00.9]} 1... Nf6 {[%clk 0:03:00]} 2. Nf3 {[%clk 0:03:00.7]}
2... d5 {[%clk 0:03:00]} 3. c4 {[%clk 0:03:01]} 3... c6 {[%clk 0:03:00.6]} 4. e3
{[%clk 0:03:00.6]} 4... Bf5 {[%clk 0:03:00.4]} 5. Nc3 {[%clk 0:03:00.7]} 5... e6
{[%clk 0:03:00.8]} 6. Nh4 {[%clk 0:03:00.8]} 6... Be4 {[%clk 0:03:01.5]} 7. f3
{[%clk 0:03:01.1]} 7... Bg6 {[%clk 0:03:02.1]} 8. Qb3 {[%clk 0:02:59.2]} 8...
Qc7 {[%clk 0:03:02]} 9. Bd2 {[%clk 0:02:49.8]} 9... Be7 {[%clk 0:02:58.7]} 10.
Nxg6 {[%clk 0:02:48.4]} 10... hxg6 {[%clk 0:02:58.6]} 11. cxd5 {[%clk
0:02:49.1]} 11... cxd5 {[%clk 0:02:52.8]} 12. O-O-O {[%clk 0:02:48.7]} 12... Nc6
{[%clk 0:02:52.7]} 13. Kb1 {[%clk 0:02:45.9]} 13... a6 {[%clk 0:02:51]} 14. Bd3
{[%clk 0:02:45.4]} 14... b5 {[%clk 0:02:17.5]} 15. Rc1 {[%clk 0:02:40.5]} 15...
Na5 {[%clk 0:02:15]} 16. Qd1 {[%clk 0:02:12.7]} 16... Nc4 {[%clk 0:02:10]} 17.
b3 {[%clk 0:01:54.5]} 17... O-O {[%clk 0:02:08.8]} 18. bxc4 {[%clk 0:01:48]}
18... bxc4 {[%clk 0:02:08]} 19. Be2 {[%clk 0:01:42.2]} 19... Bb4 {[%clk
0:01:29.7]} 20. Qa4 {[%clk 0:01:34.6]} 20... Rab8 {[%clk 0:01:25.8]} 21. Ka1
{[%clk 0:01:35]} 21... e5 {[%clk 0:01:25.6]} 22. Rb1 {[%clk 0:01:18.1]} 22... a5
{[%clk 0:01:23.7]} 23. a3 {[%clk 0:01:13.4]} 23... exd4 {[%clk 0:01:23.6]} 24.
exd4 {[%clk 0:01:13.9]} 24... Rfe8 {[%clk 0:01:23.2]} 25. Bd1 {[%clk 0:00:41.1]}
25... Qa7 {[%clk 0:00:51.2]} 26. axb4 {[%clk 0:00:28.7]} 26... Qxd4 {[%clk
0:00:50.4]} 27. b5 {[%clk 0:00:21.7]} 27... Qxd2 {[%clk 0:00:49.6]} 28. Qc2
{[%clk 0:00:21.8]} 28... Qd4 {[%clk 0:00:49.2]} 29. Ka2 {[%clk 0:00:22]} 29...
Re3 {[%clk 0:00:48.9]} 30. Na4 {[%clk 0:00:16.3]} 30... Nd7 {[%clk 0:00:44.2]}
31. Qb2 {[%clk 0:00:13.5]} 31... Qf4 {[%clk 0:00:41.1]} 32. g3 {[%clk
0:00:11.8]} 32... Qd6 {[%clk 0:00:39.9]} 33. Bc2 {[%clk 0:00:11.4]} 33... d4
{[%clk 0:00:38.4]} 34. Rhd1 {[%clk 0:00:10.9]} 34... d3 {[%clk 0:00:37.7]} 35.
Rbc1 {[%clk 0:00:07.7]} 35... Qe6 {[%clk 0:00:33.4]} 36. Ka1 {[%clk 0:00:07.3]}
36... dxc2 {[%clk 0:00:30.5]} 37. Rxc2 {[%clk 0:00:08.2]} 37... Ne5 {[%clk
0:00:30]} 38. b6 {[%clk 0:00:08.1]} 38... Nd3 {[%clk 0:00:28.9]} 39. Qd4 {[%clk
0:00:07.6]} 39... Nb4 {[%clk 0:00:29.2]} 40. Rb2 {[%clk 0:00:05.3]} 40... Ra3+
{[%clk 0:00:25.4]} 41. Kb1 {[%clk 0:00:05.9]} 41... Rxa4 {[%clk 0:00:25.4]} 42.
b7 {[%clk 0:00:06.2]} 42... Qf5+ {[%clk 0:00:24.6]} 43. Qe4 {[%clk 0:00:06.5]}
43... Qxe4+ {[%clk 0:00:24.9]} 44. fxe4 {[%clk 0:00:07.4]} 44... Rxb7 {[%clk
0:00:25.6]} 0-1

[Event "Early-Titled-Tuesday-Blitz-August-29-2023"]
[Site "Chess.com"]
[Date "2023.08.29"]
[Round "5"]
[White "Gyulamiryan-koryun"]
[Black "CraiggoryC"]
[Result "1-0"]
[WhiteElo "2063"]
[BlackElo "2197"]
[TimeControl "180+1"]
[EndTime "8:55:19 PDT"]
[Termination "Gyulamiryan-koryun won on time"]

1. c4 {[%clk 0:02:59.7]} 1... e6 {[%clk 0:02:59.7]} 2. Nc3 {[%clk 0:02:59.4]}
2... d5 {[%clk 0:02:58.9]} 3. cxd5 {[%clk 0:02:58.3]} 3... exd5 {[%clk
0:02:59.8]} 4. d4 {[%clk 0:02:58.5]} 4... Nf6 {[%clk 0:02:58.3]} 5. Bg5 {[%clk
0:02:56.4]} 5... c6 {[%clk 0:02:58]} 6. e3 {[%clk 0:02:55.4]} 6... Be7 {[%clk
0:02:57.1]} 7. Bd3 {[%clk 0:02:55]} 7... Nbd7 {[%clk 0:02:56.4]} 8. Qc2 {[%clk
0:02:54]} 8... O-O {[%clk 0:02:56.5]} 9. Nge2 {[%clk 0:02:53.8]} 9... Re8 {[%clk
0:02:57.1]} 10. O-O {[%clk 0:02:53.5]} 10... Nf8 {[%clk 0:02:57.7]} 11. f3
{[%clk 0:02:46.5]} 11... g6 {[%clk 0:02:55.3]} 12. Rae1 {[%clk 0:02:43.2]} 12...
Ne6 {[%clk 0:02:54.9]} 13. Bh4 {[%clk 0:02:41.4]} 13... b5 {[%clk 0:02:46.8]}
14. a3 {[%clk 0:02:39.4]} 14... a5 {[%clk 0:02:46.7]} 15. Bf2 {[%clk 0:02:34.6]}
15... Bb7 {[%clk 0:02:37.6]} 16. h3 {[%clk 0:02:29.4]} 16... Rc8 {[%clk
0:02:30.6]} 17. e4 {[%clk 0:02:13.8]} 17... b4 {[%clk 0:02:24.9]} 18. axb4
{[%clk 0:02:06.5]} 18... axb4 {[%clk 0:02:25.8]} 19. Na4 {[%clk 0:02:01.8]}
19... c5 {[%clk 0:02:18.1]} 20. dxc5 {[%clk 0:01:54.7]} 20... dxe4 {[%clk
0:02:03.1]} 21. fxe4 {[%clk 0:01:52.8]} 21... Nd7 {[%clk 0:01:58.5]} 22. Bb5
{[%clk 0:01:44.8]} 22... Nexc5 {[%clk 0:01:33.4]} 23. Bxd7 {[%clk 0:01:30.3]}
23... Nxd7 {[%clk 0:01:21.1]} 24. Qb1 {[%clk 0:01:14.9]} 24... Bf8 {[%clk
0:00:51.5]} 25. Nf4 {[%clk 0:01:09.1]} 25... Ne5 {[%clk 0:00:43.7]} 26. Rd1
{[%clk 0:01:03]} 26... Qg5 {[%clk 0:00:30.9]} 27. Be3 {[%clk 0:00:56]} 27... Nc4
{[%clk 0:00:23.2]} 28. Bc1 {[%clk 0:00:41.9]} 28... Bxe4 {[%clk 0:00:20]} 29.
Qa2 {[%clk 0:00:34.4]} 29... Bc2 {[%clk 0:00:16.7]} 30. Rd5 {[%clk 0:00:30.6]}
30... Qg3 {[%clk 0:00:08.5]} 31. Nc5 {[%clk 0:00:20.7]} 31... b3 {[%clk
0:00:07.9]} 32. Qa7 {[%clk 0:00:19.7]} 32... Rxc5 {[%clk 0:00:05.3]} 33. Rxc5
{[%clk 0:00:18.9]} 33... Re1 {[%clk 0:00:05.3]} 34. Rxe1 {[%clk 0:00:11.8]}
34... Qxe1+ {[%clk 0:00:05.2]} 35. Kh2 {[%clk 0:00:12.4]} 35... Qxc1 {[%clk
0:00:01.8]} 36. Rxc4 {[%clk 0:00:10.6]} 36... Qxb2 {[%clk 0:00:01.8]} 37. Qb8
{[%clk 0:00:08.5]} 1-0

[Event "Early-Titled-Tuesday-Blitz-August-29-2023"]
[Site "Chess.com"]
[Date "2023.08.29"]
[Round "5"]
[White "Daniel_Salinas"]
[Black "Nathan_Filgueiras"]
[Result "0-1"]
[WhiteElo "2305"]
[BlackElo "2525"]
[TimeControl "180+1"]
[EndTime "8:55:20 PDT"]
[Termination "Nathan_Filgueiras won by resignation"]

1. d4 {[%clk 0:03:00.9]} 1... Nf6 {[%clk 0:02:59.9]} 2. c4 {[%clk 0:03:00.2]}
2... e6 {[%clk 0:03:00.4]} 3. Nf3 {[%clk 0:03:00.3]} 3... b6 {[%clk 0:03:00.5]}
4. g3 {[%clk 0:02:59.1]} 4... Bb7 {[%clk 0:03:00.9]} 5. Bg2 {[%clk 0:02:59.7]}
5... Be7 {[%clk 0:03:01]} 6. O-O {[%clk 0:03:00.1]} 6... O-O {[%clk 0:03:01.7]}
7. Nc3 {[%clk 0:03:00.6]} 7... Ne4 {[%clk 0:03:02.3]} 8. Bd2 {[%clk 0:03:01.3]}
8... d5 {[%clk 0:03:00.6]} 9. Ne5 {[%clk 0:02:57.3]} 9... Nd7 {[%clk 0:02:53.7]}
10. Nxe4 {[%clk 0:02:52.4]} 10... dxe4 {[%clk 0:02:52.8]} 11. Qc2 {[%clk
0:02:50.4]} 11... f5 {[%clk 0:02:51.1]} 12. Bf4 {[%clk 0:02:44.3]} 12... Bf6
{[%clk 0:02:43.2]} 13. Rad1 {[%clk 0:02:34.8]} 13... Bxe5 {[%clk 0:02:41.3]} 14.
dxe5 {[%clk 0:02:33.9]} 14... Qe7 {[%clk 0:02:41]} 15. f3 {[%clk 0:02:27]} 15...
exf3 {[%clk 0:02:35.2]} 16. exf3 {[%clk 0:02:27.9]} 16... Rfd8 {[%clk
0:02:33.1]} 17. h4 {[%clk 0:02:25.5]} 17... h6 {[%clk 0:02:32.2]} 18. Qd2 {[%clk
0:02:13]} 18... Nxe5 {[%clk 0:02:17.9]} 19. Qc3 {[%clk 0:01:51.9]} 19... Nf7
{[%clk 0:02:10]} 20. Rxd8+ {[%clk 0:01:47]} 20... Rxd8 {[%clk 0:02:08.6]} 21.
Re1 {[%clk 0:01:47.9]} 21... Bc8 {[%clk 0:01:37.4]} 22. Bh3 {[%clk 0:01:35.3]}
22... Qc5+ {[%clk 0:01:31.1]} 23. Be3 {[%clk 0:01:33.1]} 23... Qe5 {[%clk
0:01:25.5]} 24. Qc1 {[%clk 0:01:27.2]} 24... Qxg3+ {[%clk 0:01:24.6]} 25. Bg2
{[%clk 0:01:21.9]} 25... Ne5 {[%clk 0:01:13.3]} 26. Rf1 {[%clk 0:01:14.2]} 26...
Bb7 {[%clk 0:01:07]} 27. Bf4 {[%clk 0:01:13.4]} 27... Nxf3+ {[%clk 0:00:45.7]}
28. Rxf3 {[%clk 0:01:12.1]} 28... Qg4 {[%clk 0:00:40.7]} 29. Qf1 {[%clk
0:00:58.8]} 29... Bxf3 {[%clk 0:00:34.2]} 30. Qxf3 {[%clk 0:00:59.7]} 30... Qxh4
{[%clk 0:00:27.3]} 31. Bxc7 {[%clk 0:00:54.6]} 31... Qe1+ {[%clk 0:00:27]} 32.
Kh2 {[%clk 0:00:52.4]} 32... Rd1 {[%clk 0:00:26]} 33. b4 {[%clk 0:00:30.4]}
33... Qh4+ {[%clk 0:00:20.5]} 34. Bh3 {[%clk 0:00:27.9]} 34... Rd2+ {[%clk
0:00:20.4]} 35. Kh1 {[%clk 0:00:20.6]} 35... Qxc4 {[%clk 0:00:17.6]} 36. Be5
{[%clk 0:00:19.3]} 36... Qe2 {[%clk 0:00:14.7]} 37. Qxe2 {[%clk 0:00:10.3]}
37... Rxe2 {[%clk 0:00:15.6]} 38. Bb8 {[%clk 0:00:11]} 38... Rxa2 {[%clk
0:00:13.6]} 39. b5 {[%clk 0:00:11.6]} 39... a5 {[%clk 0:00:12.6]} 40. Bg2 {[%clk
0:00:09.1]} 40... Rb2 {[%clk 0:00:11.2]} 41. Bc6 {[%clk 0:00:08.4]} 41... a4
{[%clk 0:00:11.7]} 42. Bc7 {[%clk 0:00:07.9]} 42... a3 {[%clk 0:00:12.1]} 43.
Bxb6 {[%clk 0:00:08]} 43... a2 {[%clk 0:00:12.6]} 0-1

[Event "Early-Titled-Tuesday-Blitz-August-29-2023"]
[Site "Chess.com"]
[Date "2023.08.29"]
[Round "5"]
[White "zurzan"]
[Black "alturas_pacificas"]
[Result "0-1"]
[WhiteElo "2090"]
[BlackElo "2393"]
[TimeControl "180+1"]
[EndTime "8:55:20 PDT"]
[Termination "alturas_pacificas won by checkmate"]

1. d4 {[%clk 0:03:00.9]} 1... d5 {[%clk 0:02:57.2]} 2. Nc3 {[%clk 0:03:00.7]}
2... c6 {[%clk 0:02:57]} 3. Bf4 {[%clk 0:03:00.9]} 3... Nf6 {[%clk 0:02:56.9]}
4. e3 {[%clk 0:03:00.3]} 4... Bf5 {[%clk 0:02:56.4]} 5. f3 {[%clk 0:03:00.5]}
5... Bg6 {[%clk 0:02:55.6]} 6. g4 {[%clk 0:03:00.7]} 6... h5 {[%clk 0:02:54.2]}
7. g5 {[%clk 0:02:59.9]} 7... Ng8 {[%clk 0:02:49.2]} 8. Bd3 {[%clk 0:02:57.5]}
8... Bxd3 {[%clk 0:02:47.1]} 9. Qxd3 {[%clk 0:02:58.4]} 9... g6 {[%clk
0:02:45.9]} 10. O-O-O {[%clk 0:02:56.9]} 10... Bg7 {[%clk 0:02:46.1]} 11. e4
{[%clk 0:02:56.4]} 11... e6 {[%clk 0:02:44.2]} 12. Nge2 {[%clk 0:02:50.3]} 12...
Ne7 {[%clk 0:02:44.4]} 13. Rhe1 {[%clk 0:02:44.3]} 13... h4 {[%clk 0:02:33.9]}
14. Be5 {[%clk 0:02:42.6]} 14... Kf8 {[%clk 0:02:31.5]} 15. Bxg7+ {[%clk
0:02:42.1]} 15... Kxg7 {[%clk 0:02:31.7]} 16. f4 {[%clk 0:02:40.7]} 16... Nd7
{[%clk 0:02:17.3]} 17. Kb1 {[%clk 0:02:39.5]} 17... b5 {[%clk 0:02:08.2]} 18. f5
{[%clk 0:02:35.5]} 18... exf5 {[%clk 0:02:06.8]} 19. exd5 {[%clk 0:02:26.8]}
19... Nxd5 {[%clk 0:02:01.3]} 20. Nxd5 {[%clk 0:02:26]} 20... cxd5 {[%clk
0:02:02.1]} 21. Qxb5 {[%clk 0:02:24.6]} 21... Nb6 {[%clk 0:01:53.8]} 22. Nc3
{[%clk 0:02:19.9]} 22... Qxg5 {[%clk 0:01:48.9]} 23. Nxd5 {[%clk 0:02:19]} 23...
Nxd5 {[%clk 0:01:23.8]} 24. Qxd5 {[%clk 0:02:18.3]} 24... Rad8 {[%clk
0:01:21.6]} 25. Qe5+ {[%clk 0:02:17]} 25... Qf6 {[%clk 0:01:22.2]} 26. Qxf6+
{[%clk 0:02:01.1]} 26... Kxf6 {[%clk 0:01:23.1]} 27. c4 {[%clk 0:02:01.4]} 27...
g5 {[%clk 0:01:22.8]} 28. c5 {[%clk 0:02:00.8]} 28... g4 {[%clk 0:01:23.4]} 29.
d5 {[%clk 0:02:00.6]} 29... g3 {[%clk 0:01:22.6]} 30. c6 {[%clk 0:01:50.4]}
30... Rd6 {[%clk 0:01:17.2]} 31. Rf1 {[%clk 0:01:40]} 31... g2 {[%clk
0:01:09.9]} 32. Rf2 {[%clk 0:01:37.8]} 32... Rxd5 {[%clk 0:01:05]} 33. Rc1
{[%clk 0:01:17.5]} 33... Rg8 {[%clk 0:00:51.4]} 34. c7 {[%clk 0:01:11.6]} 34...
g1=Q {[%clk 0:00:46.6]} 35. c8=Q {[%clk 0:01:08.5]} 35... Rxc8 {[%clk 0:00:30]}
36. Rxg1 {[%clk 0:01:07.2]} 36... Rd3 {[%clk 0:00:20.7]} 37. Rgf1 {[%clk
0:01:07]} 37... Rc5 {[%clk 0:00:20.5]} 38. b4 {[%clk 0:01:05.9]} 38... Re5
{[%clk 0:00:20.4]} 39. Kb2 {[%clk 0:01:02.8]} 39... Rd4 {[%clk 0:00:20.9]} 40.
a3 {[%clk 0:01:02.6]} 40... Kg5 {[%clk 0:00:20.6]} 41. Rg2+ {[%clk 0:01:02.1]}
41... Kf6 {[%clk 0:00:20.7]} 42. Rgf2 {[%clk 0:01:01.8]} 42... Rg4 {[%clk
0:00:20.6]} 43. Kb3 {[%clk 0:01:00.2]} 43... h3 {[%clk 0:00:20.2]} 44. Rf3
{[%clk 0:00:56.4]} 44... Rh4 {[%clk 0:00:16.2]} 45. a4 {[%clk 0:00:56.1]} 45...
Kg5 {[%clk 0:00:14.9]} 46. b5 {[%clk 0:00:56.1]} 46... Re2 {[%clk 0:00:14.5]}
47. Rg3+ {[%clk 0:00:55.6]} 47... Rg4 {[%clk 0:00:14.6]} 48. Rgf3 {[%clk
0:00:55.7]} 48... f4 {[%clk 0:00:13.8]} 49. Rxh3 {[%clk 0:00:54.6]} 49... f5
{[%clk 0:00:12.7]} 50. Rhf3 {[%clk 0:00:54.4]} 50... Re3+ {[%clk 0:00:12.7]} 51.
Kb4 {[%clk 0:00:53.4]} 51... Rg2 {[%clk 0:00:12.2]} 52. Rxf4 {[%clk 0:00:52.4]}
52... Rb2+ {[%clk 0:00:10.2]} 53. Ka5 {[%clk 0:00:51.9]} 53... Re5 {[%clk
0:00:09.8]} 54. h4+ {[%clk 0:00:51.4]} 54... Kg6 {[%clk 0:00:09.7]} 55. h5+
{[%clk 0:00:51.3]} 55... Kg5 {[%clk 0:00:10.3]} 56. h6 {[%clk 0:00:51.4]} 56...
Rh2 {[%clk 0:00:10.8]} 57. Ka6 {[%clk 0:00:50.1]} 57... Rxh6+ {[%clk 0:00:10.3]}
58. Kxa7 {[%clk 0:00:50.2]} 58... Re7+ {[%clk 0:00:09.2]} 59. Kb8 {[%clk
0:00:43.6]} 59... Rh8# {[%clk 0:00:10.1]} 0-1

[Event "Early-Titled-Tuesday-Blitz-August-29-2023"]
[Site "Chess.com"]
[Date "2023.08.29"]
[Round "5"]
[White "ElenaPershina"]
[Black "DarZay"]
[Result "0-1"]
[WhiteElo "2387"]
[BlackElo "2275"]
[TimeControl "180+1"]
[EndTime "8:55:21 PDT"]
[Termination "DarZay won on time"]

1. c4 {[%clk 0:03:00.9]} 1... e6 {[%clk 0:02:57.9]} 2. g3 {[%clk 0:03:00.6]}
2... d5 {[%clk 0:02:57.8]} 3. Bg2 {[%clk 0:03:01.2]} 3... Be7 {[%clk 0:02:57.2]}
4. Nf3 {[%clk 0:03:01]} 4... Nf6 {[%clk 0:02:57.5]} 5. O-O {[%clk 0:02:59.3]}
5... O-O {[%clk 0:02:57.6]} 6. b3 {[%clk 0:02:57.6]} 6... d4 {[%clk 0:02:56.4]}
7. d3 {[%clk 0:02:52.6]} 7... c5 {[%clk 0:02:55.8]} 8. e3 {[%clk 0:02:52.4]}
8... Nc6 {[%clk 0:02:51.4]} 9. exd4 {[%clk 0:02:52.1]} 9... Nxd4 {[%clk
0:02:51.3]} 10. Be3 {[%clk 0:02:35.8]} 10... Rb8 {[%clk 0:02:40.5]} 11. Bxd4
{[%clk 0:02:30.2]} 11... cxd4 {[%clk 0:02:40.3]} 12. Nbd2 {[%clk 0:02:30.1]}
12... b6 {[%clk 0:02:36.6]} 13. Ne5 {[%clk 0:02:26]} 13... Bd7 {[%clk
0:02:26.5]} 14. Nc6 {[%clk 0:02:24.8]} 14... Bxc6 {[%clk 0:02:26.1]} 15. Bxc6
{[%clk 0:02:25.7]} 15... e5 {[%clk 0:02:23]} 16. Re1 {[%clk 0:02:24.5]} 16...
Qd6 {[%clk 0:02:17.9]} 17. Bg2 {[%clk 0:02:23.2]} 17... Rfe8 {[%clk 0:02:14.4]}
18. Ne4 {[%clk 0:02:09.8]} 18... Nxe4 {[%clk 0:02:13.7]} 19. Bxe4 {[%clk
0:02:10.7]} 19... Qf6 {[%clk 0:02:03.9]} 20. Qh5 {[%clk 0:02:01.3]} 20... g6
{[%clk 0:02:02.4]} 21. Qh3 {[%clk 0:01:50.7]} 21... Qg5 {[%clk 0:01:57.5]} 22.
Bd5 {[%clk 0:01:48.1]} 22... Kg7 {[%clk 0:01:52.4]} 23. Qd7 {[%clk 0:01:34.9]}
23... a5 {[%clk 0:01:41]} 24. h4 {[%clk 0:01:28.7]} 24... Qf6 {[%clk 0:01:36.5]}
25. Re2 {[%clk 0:01:17.7]} 25... Bb4 {[%clk 0:01:35.2]} 26. a3 {[%clk
0:01:10.8]} 26... Bc3 {[%clk 0:01:29.5]} 27. Rf1 {[%clk 0:01:00.9]} 27... Rbd8
{[%clk 0:01:14.7]} 28. Qg4 {[%clk 0:00:37.2]} 28... Qd6 {[%clk 0:01:09.7]} 29.
f4 {[%clk 0:00:29.3]} 29... f5 {[%clk 0:00:52.5]} 30. Qf3 {[%clk 0:00:18.7]}
30... exf4 {[%clk 0:00:45.5]} 31. Rxe8 {[%clk 0:00:17.9]} 31... Rxe8 {[%clk
0:00:45.7]} 32. Qxf4 {[%clk 0:00:18]} 32... Qxf4 {[%clk 0:00:45.6]} 33. Rxf4
{[%clk 0:00:18.1]} 33... Re2 {[%clk 0:00:39.6]} 34. Rf2 {[%clk 0:00:17]} 34...
Re1+ {[%clk 0:00:38.8]} 35. Rf1 {[%clk 0:00:14.7]} 35... Re3 {[%clk 0:00:36.9]}
36. Kg2 {[%clk 0:00:13.7]} 36... Rxd3 {[%clk 0:00:36.4]} 37. Rf2 {[%clk
0:00:11.6]} 37... Re3 {[%clk 0:00:34.3]} 38. Rf3 {[%clk 0:00:05.4]} 38... Re2+
{[%clk 0:00:24.8]} 39. Rf2 {[%clk 0:00:04.8]} 39... d3 {[%clk 0:00:25.3]} 40.
Bf3 {[%clk 0:00:03.1]} 40... Re1 {[%clk 0:00:19.8]} 41. Ra2 {[%clk 0:00:01.3]}
41... d2 {[%clk 0:00:17]} 0-1

[Event "Early-Titled-Tuesday-Blitz-August-29-2023"]
[Site "Chess.com"]
[Date "2023.08.29"]
[Round "5"]
[White "DanielTitichoca"]
[Black "ArtemDyachuk"]
[Result "0-1"]
[WhiteElo "2424"]
[BlackElo "2586"]
[TimeControl "180+1"]
[EndTime "8:55:23 PDT"]
[Termination "ArtemDyachuk won by resignation"]

1. e4 {[%clk 0:03:00.9]} 1... c5 {[%clk 0:02:36.9]} 2. Nf3 {[%clk 0:02:58.2]}
2... d6 {[%clk 0:02:34.2]} 3. d4 {[%clk 0:02:58.7]} 3... cxd4 {[%clk 0:02:33.7]}
4. Nxd4 {[%clk 0:02:58.9]} 4... Nf6 {[%clk 0:02:32.5]} 5. Nc3 {[%clk 0:02:59.5]}
5... Nc6 {[%clk 0:02:31.5]} 6. Bg5 {[%clk 0:02:58.3]} 6... e6 {[%clk 0:02:30.7]}
7. Qd2 {[%clk 0:02:56.5]} 7... Bd7 {[%clk 0:02:29.9]} 8. O-O-O {[%clk
0:02:55.7]} 8... a6 {[%clk 0:02:28.2]} 9. Kb1 {[%clk 0:02:55.1]} 9... Be7 {[%clk
0:02:16.2]} 10. h4 {[%clk 0:02:52.2]} 10... h6 {[%clk 0:02:04]} 11. Be3 {[%clk
0:02:43.2]} 11... Qc7 {[%clk 0:01:49.2]} 12. f3 {[%clk 0:02:41.5]} 12... O-O-O
{[%clk 0:01:47.4]} 13. Nb3 {[%clk 0:02:17]} 13... Ne5 {[%clk 0:01:44.3]} 14. h5
{[%clk 0:02:13.3]} 14... Bc6 {[%clk 0:01:39.8]} 15. Nd4 {[%clk 0:01:46.6]} 15...
Bd7 {[%clk 0:01:37.3]} 16. Be2 {[%clk 0:01:43.7]} 16... Kb8 {[%clk 0:01:31.3]}
17. Rc1 {[%clk 0:01:39.7]} 17... Rc8 {[%clk 0:01:23.2]} 18. g3 {[%clk
0:01:38.9]} 18... Rhd8 {[%clk 0:01:19.8]} 19. g4 {[%clk 0:01:38.9]} 19... Nc4
{[%clk 0:01:14.1]} 20. Bxc4 {[%clk 0:01:38.2]} 20... Qxc4 {[%clk 0:01:15]} 21.
Nb3 {[%clk 0:01:32.6]} 21... d5 {[%clk 0:01:10.9]} 22. e5 {[%clk 0:01:27.4]}
22... Ne8 {[%clk 0:01:08.5]} 23. a3 {[%clk 0:01:19.4]} 23... f6 {[%clk
0:01:03.9]} 24. Bf4 {[%clk 0:01:11.5]} 24... Ka8 {[%clk 0:01:01.7]} 25. Rhe1
{[%clk 0:01:07.5]} 25... Bxa3 {[%clk 0:00:52.4]} 26. exf6 {[%clk 0:01:01.2]}
26... Nxf6 {[%clk 0:00:46.4]} 27. Be5 {[%clk 0:00:47]} 27... Bb4 {[%clk
0:00:43.4]} 28. Rcd1 {[%clk 0:00:44.9]} 28... Be8 {[%clk 0:00:28.6]} 29. Qd4
{[%clk 0:00:40.5]} 29... Qxd4 {[%clk 0:00:21.8]} 30. Nxd4 {[%clk 0:00:34.3]}
30... Bf7 {[%clk 0:00:20.6]} 31. Bxf6 {[%clk 0:00:29.4]} 31... gxf6 {[%clk
0:00:21.5]} 32. Nxe6 {[%clk 0:00:29.7]} 32... Rd6 {[%clk 0:00:19.9]} 33. Nd4
{[%clk 0:00:15.7]} 33... Be8 {[%clk 0:00:19.7]} 34. Nf5 {[%clk 0:00:14]} 34...
Rb6 {[%clk 0:00:18.2]} 35. Nxd5 {[%clk 0:00:14.4]} 35... Rb5 {[%clk 0:00:13.7]}
36. Rxe8 {[%clk 0:00:14]} 36... Rxe8 {[%clk 0:00:12.3]} 37. Nc7+ {[%clk
0:00:14.5]} 37... Kb8 {[%clk 0:00:12.7]} 38. Nxe8 {[%clk 0:00:15.1]} 38... Bc3
{[%clk 0:00:09.1]} 39. b3 {[%clk 0:00:15.3]} 39... Ra5 {[%clk 0:00:09.3]} 40.
Rd8+ {[%clk 0:00:07.8]} 40... Ka7 {[%clk 0:00:09.2]} 0-1